fUST/lending_fUST_20250615
["ID","MTS","AMOUNT","RATE_DAILY","PERIOD"]
[365810277,1749930635340,-460.0,0.00021917,4]
[365810278,1749930635349,-460.0,0.00021917,4]
[365810279,1749930635360,-460.0,0.00021917,4]
[365810280,1749930635369,-460.0,0.00021917,4]
[365810281,1749930635379,-506.17,0.00021917,4]
[365810282,1749930635389,-3433.59,0.00021917,4]
[365810283,1749930635399,-460.0,0.00021917,4]
[365810284,1749930635408,-440.0,0.00021917,4]
[365810285,1749930635418,-440.0,0.00021917,4]
[365810286,1749930635428,-460.0,0.00021917,4]
[365810287,1749930635438,-380.0,0.00021917,4]
[365810288,1749930635447,-413.91483587,0.00021917,4]
[365810289,1749930635457,-3459.67,0.00021917,4]
[365810290,1749930635466,-460.0,0.00021917,4]
[365810291,1749930635476,-440.0,0.00021917,4]
[365810292,1749930635489,-460.0,0.00021917,4]
[365810293,1749930635499,-460.0,0.00021917,4]
[365810294,1749930635509,-460.0,0.00021917,4]
[365810295,1749930635518,-440.0,0.00021917,4]
[365810296,1749930635528,-460.0,0.00021917,4]
[365810297,1749930635537,-744.6,0.00021917,4]
[365810298,1749930635547,-440.0,0.00021917,4]
[365810299,1749930635556,-460.0,0.00021917,4]
[365810300,1749930635565,-460.0,0.00021917,4]
[365810301,1749930635575,-440.0,0.00021917,4]
[365810302,1749930635584,-440.0,0.00021917,4]
[365810303,1749930635594,-568.48,0.00021917,4]
[365810304,1749930635603,-460.0,0.00021917,4]
[365810305,1749930635613,-460.0,0.00021917,4]
[365810306,1749930635622,-460.0,0.00021917,4]
[365810307,1749930635632,-460.0,0.00021917,4]
[365810308,1749930635642,-3885.17,0.00021917,4]
[365810309,1749930635653,-430.0,0.00021917,4]
[365810310,1749930635662,-460.0,0.00021917,4]
[365810311,1749930635672,-460.0,0.00021917,4]
[365810312,1749930635682,-460.0,0.00021917,4]
[365810313,1749930635692,-3556.29,0.00021917,4]
[365810314,1749930635702,-460.0,0.00021917,4]
[365810315,1749930635711,-460.0,0.00021917,4]
[365810316,1749930635721,-1763.39,0.00021917,4]
[365810317,1749930635731,-401.94791511,0.00021917,4]
[365810318,1749930635745,-685.68,0.00021917,2]
[365810319,1749930635758,-440.0,0.00021917,4]
[365810320,1749930635767,-400.0,0.00021917,4]
[365810321,1749930635777,-685.9,0.00021917,4]
[365810322,1749930635790,-528.04361022,0.00021917,4]
[365810323,1749930635802,-440.0,0.00021917,4]
[365810324,1749930635811,-400.0,0.00021917,4]
[365810325,1749930635821,-440.0,0.00021917,4]
[365810326,1749930635832,-460.0,0.00021917,4]
[365810327,1749930635842,-460.0,0.00021917,4]
[365810328,1749930635852,-460.0,0.00021917,4]
[365810329,1749930635862,-220.9668043,0.00021917,4]
[365810330,1749930635998,-239.0331957,0.00021917,4]
[365810331,1749930636008,-440.0,0.00021917,4]
[365810332,1749930636018,-460.0,0.00021917,4]
[365810333,1749930636027,-507.63682359,0.00021917,4]
[365810334,1749930636039,-460.0,0.00021917,4]
[365810335,1749930636049,-400.0,0.00021917,4]
[365810336,1749930636058,-460.0,0.00021917,4]
[365810337,1749930636067,-401.61404697,0.00021917,4]
[365810338,1749930636077,-460.0,0.00021917,4]
[365810339,1749930636087,-460.0,0.00021917,4]
[365810340,1749930636096,-430.0,0.00021917,4]
[365810341,1749930636107,-460.0,0.00021917,4]
[365810342,1749930636117,-430.0,0.00021917,4]
[365810343,1749930636127,-460.0,0.00021917,4]
[365810344,1749930636137,-460.0,0.00021917,4]
[365810345,1749930636147,-460.0,0.00021917,4]
[365810346,1749930636158,-460.0,0.00021917,4]
[365810347,1749930636169,-2415.44,0.00021917,4]
[365810348,1749930636178,-460.0,0.00021917,4]
[365810349,1749930636188,-460.0,0.00021917,4]
[365810350,1749930636198,-460.0,0.00021917,4]
[365810351,1749930636207,-440.0,0.00021917,4]
[365810352,1749930636216,-402.56902387,0.00021917,4]
[365810353,1749930636227,-1391.0,0.00021917,4]
[365810354,1749930636237,-1957.05,0.00021917,4]
[365810355,1749930636247,-460.0,0.00021917,4]
[365810356,1749930636256,-3058.74,0.00021917,4]
[365810357,1749930636266,-1921.61,0.00021917,4]
[365810358,1749930636276,-300.0,0.00021917,4]
[365810359,1749930636288,-423.22003313,0.00021917,4]
[365810360,1749930636297,-460.0,0.00021917,4]
[365810361,1749930636307,-440.0,0.00021917,4]
[365810362,1749930636317,-460.0,0.00021917,4]
[365810363,1749930636328,-460.0,0.00021917,4]
[365810364,1749930636339,-460.0,0.00021917,4]
[365810365,1749930636351,-460.0,0.00021917,4]
[365810366,1749930636362,-370.0,0.00021917,4]
[365810367,1749930636371,-460.0,0.00021917,4]
[365810368,1749930636380,-460.0,0.00021917,4]
[365810369,1749930636390,-460.0,0.00021917,4]
[365810370,1749930636400,-460.0,0.00021917,4]
[365810371,1749930636410,-460.0,0.00021917,4]
[365810372,1749930636547,-430.0,0.00021917,4]
[365810373,1749930636557,-430.0,0.00021917,4]
[365810374,1749930636567,-460.0,0.00021917,4]
[365810375,1749930636575,-414.71003041,0.00021917,4]
[365810376,1749930636585,-1098.89,0.00021917,4]
[365810377,1749930636594,-438.86606368,0.00021917,4]
[365810378,1749930636603,-771.13,0.00021917,4]
[365810379,1749930636613,-1871.86,0.00021917,4]
[365810380,1749930636622,-460.0,0.00021917,4]
[365810381,1749930636631,-460.0,0.00021917,4]
[365810382,1749930636640,-460.0,0.00021917,4]
[365810383,1749930636649,-500.0,0.00021973,2]
[365810384,1749930636658,-500.0,0.00021973,2]
[365810385,1749930636667,-503.10535846,0.00021973,2]
[365810386,1749930636676,-500.0,0.00021973,2]
[365810387,1749930636685,-500.0,0.00021973,2]
[365810388,1749930636695,-500.0,0.00021973,2]
[365810389,1749930636704,-500.0,0.00021973,2]
[365810390,1749930636714,-208.8453268,0.00021973,2]
[365810391,1749930636723,-500.0,0.00021973,2]
[365810392,1749930636733,-2393.47,0.00022,7]
[365810393,1749930636747,-171.0,0.00022,2]
[365810394,1749930636760,-667.45443944,0.00022003,6]
[365810395,1749930636769,-7326.29241292,0.00022091,2]
[365810396,1749930636779,-667.45443944,0.00022107,6]
[365810397,1749930636788,-500.0,0.00022173,2]
[365810398,1749930636798,-500.0,0.00022173,2]
[365810399,1749930636808,-501.05518207,0.00022173,2]
[365810400,1749930636818,-500.0,0.00022173,2]
[365810401,1749930636827,-500.0,0.00022173,2]
[365810402,1749930636838,-500.0,0.00022173,2]
[365810403,1749930636848,-500.0,0.00022173,2]
[365810404,1749930636857,-500.0,0.00022173,2]
[365810405,1749930636867,-500.0,0.00022173,2]
[365810406,1749930636876,-500.0,0.00022173,2]
[365810407,1749930636886,-500.0,0.00022173,2]
[365810408,1749930636895,-446.20479493,0.00022173,2]
[365810409,1749930636904,-500.0,0.00022173,2]
[365810410,1749930636914,-500.0,0.00022173,2]
[365810411,1749930636924,-500.0,0.00022191,4]
[365810412,1749930636933,-460.0,0.00022191,4]
[365810413,1749930636943,-406.47733634,0.00022191,4]
[365810414,1749930636952,-249.25624937,0.00022191,4]
[365810415,1749930636961,-460.0,0.00022191,4]
[365810416,1749930636970,-460.0,0.00022191,4]
[365810417,1749930636979,-460.0,0.00022191,4]
[365810418,1749930636992,-420.0,0.00022191,4]
[365810419,1749930637001,-460.0,0.00022191,4]
[365810420,1749930637010,-555.48,0.00022191,4]
[365810421,1749930637020,-460.0,0.00022191,4]
[365810422,1749930637029,-400.0,0.00022191,4]
[365810423,1749930637038,-460.0,0.00022191,4]
[365810424,1749930637047,-460.0,0.00022191,4]
[365810425,1749930637056,-460.0,0.00022191,4]
[365810426,1749930637066,-460.0,0.00022191,4]
[365810427,1749930637075,-460.0,0.00022191,4]
[365810428,1749930637084,-460.0,0.00022191,4]
[365810429,1749930637094,-340.0,0.00022191,4]
[365810430,1749930637103,-528.33505023,0.00022191,4]
[365810431,1749930637112,-460.0,0.00022191,4]
[365810432,1749930637122,-460.0,0.00022191,4]
[365810433,1749930637131,-460.0,0.00022191,4]
[365810434,1749930637140,-460.0,0.00022191,4]
[365810435,1749930637150,-460.0,0.00022191,4]
[365810436,1749930637159,-460.0,0.00022191,4]
[365810437,1749930637169,-353.5421688,0.00022191,4]
[365810438,1749930637178,-460.0,0.00022191,4]
[365810439,1749930637188,-440.0,0.00022191,4]
[365810440,1749930637200,-460.0,0.00022191,4]
[365810441,1749930637211,-460.0,0.00022191,4]
[365810442,1749930637223,-420.0,0.00022191,4]
[365810443,1749930637232,-370.0,0.00022191,4]
[365810444,1749930637244,-460.0,0.00022191,4]
[365810445,1749930637254,-460.0,0.00022191,4]
[365810446,1749930637264,-460.0,0.00022191,4]
[365810447,1749930637273,-196.0858518,0.00022191,4]
[365810448,1749930637282,-440.0,0.00022191,4]
[365810449,1749930637291,-400.0,0.00022191,4]
[365810450,1749930637300,-2048.85,0.00022191,4]
[365810451,1749930637310,-383.83483562,0.00022191,4]
[365810452,1749930637320,-440.0,0.00022191,4]
[365810453,1749930637329,-360.0,0.00022191,4]
[365810454,1749930637338,-460.0,0.00022191,4]
[365810455,1749930637347,-460.0,0.00022191,4]
[365810456,1749930637357,-420.0,0.00022191,4]
[365810457,1749930637366,-440.0,0.00022191,4]
[365810458,1749930637376,-460.0,0.00022191,4]
[365810459,1749930637385,-460.0,0.00022191,4]
[365810460,1749930637394,-400.0,0.00022191,4]
[365810461,1749930637403,-460.0,0.00022191,4]
[365810462,1749930637413,-400.0,0.00022191,4]
[365810463,1749930637422,-460.0,0.00022191,4]
[365810464,1749930637432,-400.0,0.00022191,4]
[365810465,1749930637441,-500.0,0.00022191,4]
[365810466,1749930637450,-460.0,0.00022191,4]
[365810467,1749930637459,-460.0,0.00022191,4]
[365810468,1749930637469,-460.0,0.00022191,4]
[365810469,1749930637478,-460.0,0.00022191,4]
[365810470,1749930637489,-460.0,0.00022191,4]
[365810471,1749930637498,-460.0,0.00022191,4]
[365810472,1749930637507,-460.0,0.00022191,4]
[365810473,1749930637517,-440.0,0.00022191,4]
[365810474,1749930637526,-460.0,0.00022191,4]
[365810475,1749930637535,-3020.13,0.00022191,4]
[365810476,1749930637544,-430.0,0.00022191,4]
[365810477,1749930637554,-460.0,0.00022191,4]
[365810478,1749930637563,-460.0,0.00022191,4]
[365810479,1749930637573,-460.0,0.00022191,4]
[365810480,1749930637582,-1483.61,0.00022191,4]
[365810481,1749930637591,-460.0,0.00022191,4]
[365810482,1749930637600,-460.0,0.00022191,4]
[365810483,1749930637610,-460.0,0.00022191,4]
[365810484,1749930637619,-460.0,0.00022191,4]
[365810485,1749930637628,-460.0,0.00022191,4]
[365810486,1749930637638,-460.0,0.00022191,4]
[365810487,1749930637648,-513.93,0.00022191,4]
[365810488,1749930637657,-460.0,0.00022191,4]
[365810490,1749930637670,-172.71262516,0.00022191,4]
[365810491,1749930637679,-460.0,0.00022191,4]
[365810492,1749930637689,-460.0,0.00022191,4]
[365810493,1749930637698,-440.0,0.00022191,4]
[365810494,1749930637707,-390.09483473,0.00022191,4]
[365810495,1749930637717,-500.0,0.00022191,4]
[365810496,1749930637727,-878.55,0.00022191,4]
[365810497,1749930637736,-460.0,0.00022191,4]
[365810498,1749930637745,-251.01586478,0.00022191,4]
[365810499,1749930637757,-460.0,0.00022191,4]
[365810500,1749930637767,-460.0,0.00022191,4]
[365810501,1749930637776,-983.15,0.00022191,4]
[365810502,1749930637786,-460.0,0.00022191,4]
[365810503,1749930637797,-440.0,0.00022191,4]
[365810504,1749930637809,-430.0,0.00022191,4]
[365810505,1749930637819,-222.25,0.00022191,4]
[365810506,1749930637829,-460.0,0.00022191,4]
[365810507,1749930637839,-460.0,0.00022191,4]
[365810508,1749930637850,-399.6388635,0.00022191,4]
[365810509,1749930637859,-1257.45,0.00022191,4]
[365810510,1749930637870,-460.0,0.00022191,4]
[365810511,1749930637879,-440.0,0.00022191,4]
[365810512,1749930637889,-460.0,0.00022191,4]
[365810513,1749930637899,-380.0,0.00022191,4]
[365810514,1749930637908,-421.33764782,0.00022191,4]
[365810515,1749930637918,-460.0,0.00022191,4]
[365810516,1749930637928,-3194.87,0.00022191,4]
[365810517,1749930637937,-1287.0,0.00022191,4]
[365810518,1749930637947,-460.0,0.00022191,4]
[365810519,1749930637958,-460.0,0.00022191,4]
[365810521,1749930637968,-440.0,0.00022191,4]
[365810523,1749930637978,-843.8,0.00022191,4]
[365810524,1749930637989,-460.0,0.00022191,4]
[365810526,1749930637998,-1399.33,0.00022191,4]
[365810528,1749930638008,-460.0,0.00022191,4]
[365810530,1749930638017,-460.0,0.00022191,4]
[365810532,1749930638027,-1395.43,0.00022191,4]
[365810534,1749930638036,-460.0,0.00022191,4]
[365810536,1749930638046,-616.65,0.00022191,4]
[365810538,1749930638055,-460.0,0.00022191,4]
[365810540,1749930638065,-221.20467988,0.00022191,4]
[365810542,1749930638075,-2664.63,0.00022191,4]
[365810543,1749930638085,-290.0,0.00022191,4]
[365810544,1749930638094,-460.0,0.00022191,4]
[365810545,1749930638103,-577.60360734,0.00022191,4]
[365810546,1749930638113,-460.0,0.00022191,4]
[365810547,1749930638124,-460.0,0.00022191,4]
[365810548,1749930638133,-3433.59,0.00022191,4]
[365810549,1749930638143,-420.0,0.00022191,4]
[365810550,1749930638152,-460.0,0.00022191,4]
[365810551,1749930638161,-3459.67,0.00022191,4]
[365810552,1749930638171,-316.03858609,0.00022191,4]
[365810553,1749930638180,-460.0,0.00022191,4]
[365810554,1749930638189,-460.0,0.00022191,4]
[365810555,1749930638199,-440.0,0.00022191,4]
[365810556,1749930638208,-363.39964934,0.00022191,4]
[365810557,1749930638218,-744.6,0.00022191,4]
[365810558,1749930638227,-440.0,0.00022191,4]
[365810559,1749930638236,-440.0,0.00022191,4]
[365810560,1749930638247,-568.48,0.00022191,4]
[365810561,1749930638256,-460.0,0.00022191,4]
[365810562,1749930638265,-440.0,0.00022191,4]
[365810563,1749930638275,-460.0,0.00022191,4]
[365810564,1749930638284,-3885.17,0.00022191,4]
[365810565,1749930638293,-460.0,0.00022191,4]
[365810566,1749930638303,-574.38209525,0.00022191,4]
[365810567,1749930638311,-460.0,0.00022191,4]
[365810568,1749930638321,-460.0,0.00022191,4]
[365810569,1749930638334,-3556.29,0.00022191,4]
[365810570,1749930638344,-460.0,0.00022191,4]
[365810571,1749930638353,-400.0,0.00022191,4]
[365810572,1749930638362,-1763.39,0.00022191,4]
[365810573,1749930638372,-685.68,0.00022191,2]
[365810574,1749930638382,-685.9,0.00022191,4]
[365810575,1749930638392,-460.0,0.00022191,4]
[365810576,1749930638402,-460.0,0.00022191,4]
[365810577,1749930638411,-360.0,0.00022191,4]
[365810578,1749930638420,-430.0,0.00022191,4]
[365810579,1749930638430,-460.0,0.00022191,4]
[365810580,1749930638439,-460.0,0.00022191,4]
[365810581,1749930638449,-440.0,0.00022191,4]
[365810582,1749930638458,-460.0,0.00022191,4]
[365810583,1749930638468,-430.0,0.00022191,4]
[365810584,1749930638477,-204.6,0.00022191,4]
[365810585,1749930638488,-460.0,0.00022191,4]
[365810586,1749930638498,-460.0,0.00022191,4]
[365810587,1749930638507,-460.0,0.00022191,4]
[365810588,1749930638517,-240.0,0.00022191,4]
[365810589,1749930638527,-2415.44,0.00022191,4]
[365810590,1749930638536,-460.0,0.00022191,4]
[365810591,1749930638546,-440.0,0.00022191,4]
[365810592,1749930638555,-1391.0,0.00022191,4]
[365810593,1749930638565,-1957.05,0.00022191,4]
[365810594,1749930638574,-460.0,0.00022191,4]
[365810595,1749930638584,-3058.74,0.00022191,4]
[365810596,1749930638593,-1921.61,0.00022191,4]
[365810597,1749930638603,-460.0,0.00022191,4]
[365810598,1749930638612,-460.0,0.00022191,4]
[365810599,1749930638622,-460.0,0.00022191,4]
[365810600,1749930638631,-440.0,0.00022191,4]
[365810601,1749930638641,-430.0,0.00022191,4]
[365810602,1749930638650,-440.0,0.00022191,4]
[365810603,1749930638660,-460.0,0.00022191,4]
[365810604,1749930638669,-420.0,0.00022191,4]
[365810605,1749930638679,-460.0,0.00022191,4]
[365810606,1749930638688,-430.0,0.00022191,4]
[365810607,1749930638698,-1098.89,0.00022191,4]
[365810608,1749930638707,-771.13,0.00022191,4]
[365810609,1749930638716,-1871.86,0.00022191,4]
[365810610,1749930638726,-460.0,0.00022191,4]
[365810611,1749930638735,-460.0,0.00022191,4]
[365810612,1749930638745,-460.0,0.00022191,4]
[365810613,1749930638757,-667.45443944,0.0002221,6]
[365810614,1749930638767,-865.63132522,0.00022228,2]
[365810615,1749930638777,-151.0,0.00022246,4]
[365810616,1749930638787,-151.0,0.00022246,4]
[365810617,1749930638798,-151.0,0.00022246,4]
[365810618,1749930638808,-500.0,0.00022246,4]
[365810619,1749930638817,-180.676574,0.00022247,2]
[365810620,1749930638829,-500.0,0.0002225,2]
[365810621,1749930638840,-160.0,0.0002225,2]
[365810622,1749930638849,-160.0,0.00022265,2]
[365810623,1749930638859,-160.0,0.00022265,2]
[365810624,1749930638869,-160.0,0.00022265,2]
[365810625,1749930638879,-160.0,0.00022265,2]
[365810626,1749930638889,-160.0,0.00022265,2]
[365810627,1749930638899,-229.82479369,0.00022265,2]
[365810628,1749930638908,-424.40141186,0.00022265,2]
[365810629,1749930638917,-12533.30537164,0.00022265,2]
[365810630,1749930638927,-160.0,0.00022265,2]
[365810631,1749930638937,-198.0,0.00022273,4]
[365810632,1749930638946,-151.0,0.00022273,4]
[365810633,1749930638955,-151.0,0.00022273,4]
[365810634,1749930638965,-500.0,0.00022273,4]
[365810635,1749930638974,-151.0,0.00022301,4]
[365810636,1749930638984,-151.0,0.00022301,4]
[365810637,1749930638994,-500.0,0.00022301,4]
[365810638,1749930639005,-667.45443944,0.00022314,7]
[365810639,1749930639016,-207.4,0.00022378,2]
[365810640,1749930639025,-5000.0,0.00022378,2]
[365810641,1749930639035,-500.0,0.00022378,2]
[365810642,1749930639044,-500.0,0.00022378,2]
[365810643,1749930639053,-2938.92270128,0.00022378,2]
[365810644,1749930639063,-500.0,0.00022378,2]
[365810645,1749930639072,-500.0,0.00022378,2]
[365810646,1749930639081,-500.0,0.00022378,2]
[365810647,1749930639091,-500.0,0.00022378,2]
[365810648,1749930639100,-500.0,0.00022378,2]
[365810649,1749930639110,-500.0,0.00022378,2]
[365810650,1749930639128,-500.0,0.00022378,2]
[365810651,1749930639142,-500.0,0.00022378,2]
[365810652,1749930639157,-500.0,0.00022378,2]
[365810653,1749930639177,-500.0,0.00022378,2]
[365810654,1749930639186,-500.0,0.00022378,2]
[365810655,1749930639195,-500.0,0.00022378,2]
[365810656,1749930639204,-500.0,0.00022378,2]
[365810657,1749930639214,-1000.0,0.00022378,2]
[365810658,1749930639224,-500.0,0.00022378,2]
[365810659,1749930639233,-667.45443944,0.00022417,7]
[365810660,1749930639243,-612.31881565,0.00022465,4]
[365810661,1749930639252,-460.0,0.00022465,4]
[365810662,1749930639261,-460.0,0.00022465,4]
[365810663,1749930639270,-400.0,0.00022465,4]
[365810664,1749930639279,-555.48,0.00022465,4]
[365810665,1749930639289,-400.0,0.00022465,4]
[365810666,1749930639298,-400.0,0.00022465,4]
[365810667,1749930639307,-340.0,0.00022465,4]
[365810668,1749930639316,-460.0,0.00022465,4]
[365810669,1749930639326,-319.99840326,0.00022465,4]
[365810670,1749930639334,-460.0,0.00022465,4]
[365810671,1749930639344,-460.0,0.00022465,4]
[365810672,1749930639352,-460.0,0.00022465,4]
[365810673,1749930639362,-260.30721378,0.00022465,4]
[365810674,1749930639371,-370.0,0.00022465,4]
[365810675,1749930639381,-460.0,0.00022465,4]
[365810676,1749930639391,-582.24190177,0.00022465,4]
[365810677,1749930639401,-440.0,0.00022465,4]
[365810678,1749930639411,-280.0,0.00022465,4]
[365810679,1749930639420,-460.0,0.00022465,4]
[365810680,1749930639430,-460.0,0.00022465,4]
[365810681,1749930639439,-259.04521588,0.00022465,4]
[365810682,1749930639448,-270.0,0.00022465,4]
[365810683,1749930639568,-238.77230431,0.00022465,4]
[365810684,1749930639579,-2048.85,0.00022465,4]
[365810685,1749930639590,-460.0,0.00022465,4]
[365810686,1749930639601,-291.37779626,0.00022465,4]
[365810687,1749930639611,-290.0,0.00022465,4]
[365810688,1749930639621,-400.0,0.00022465,4]
[365810689,1749930639631,-430.0,0.00022465,4]
[365810690,1749930639640,-500.0,0.00022465,4]
[365810691,1749930639650,-460.0,0.00022465,4]
[365810693,1749930639659,-460.0,0.00022465,4]
[365810694,1749930639669,-460.0,0.00022465,4]
[365810695,1749930639678,-460.0,0.00022465,4]
[365810696,1749930639688,-460.0,0.00022465,4]
[365810697,1749930639698,-460.0,0.00022465,4]
[365810698,1749930639708,-460.0,0.00022465,4]
[365810699,1749930639717,-3020.13,0.00022465,4]
[365810700,1749930639727,-460.0,0.00022465,4]
[365810701,1749930639736,-460.0,0.00022465,4]
[365810702,1749930639747,-460.0,0.00022465,4]
[365810703,1749930639759,-1483.61,0.00022465,4]
[365810705,1749930639768,-400.0,0.00022465,4]
[365810707,1749930639777,-431.87686437,0.00022465,4]
[365810708,1749930639787,-460.0,0.00022465,4]
[365810709,1749930639798,-460.0,0.00022465,4]
[365810710,1749930639808,-460.0,0.00022465,4]
[365810711,1749930639818,-460.0,0.00022465,4]
[365810712,1749930639827,-513.93,0.00022465,4]
[365810713,1749930639839,-460.0,0.00022465,4]
[365810714,1749930639849,-440.0,0.00022465,4]
[365810715,1749930639859,-500.0,0.00022465,4]
[365810716,1749930639868,-878.55,0.00022465,4]
[365810717,1749930639877,-460.0,0.00022465,4]
[365810718,1749930639887,-460.0,0.00022465,4]
[365810719,1749930639896,-983.15,0.00022465,4]
[365810720,1749930639906,-460.0,0.00022465,4]
[365810721,1749930639915,-460.0,0.00022465,4]
[365810722,1749930639925,-460.0,0.00022465,4]
[365810723,1749930639935,-1257.45,0.00022465,4]
[365810724,1749930639944,-460.0,0.00022465,4]
[365810725,1749930639953,-460.0,0.00022465,4]
[365810726,1749930639962,-400.0,0.00022465,4]
[365810727,1749930639971,-3194.87,0.00022465,4]
[365810728,1749930639981,-1287.0,0.00022465,4]
[365810729,1749930639992,-409.22424069,0.00022465,4]
[365810730,1749930640001,-390.0,0.00022465,4]
[365810731,1749930640010,-843.8,0.00022465,4]
[365810732,1749930640019,-460.0,0.00022465,4]
[365810733,1749930640029,-1399.33,0.00022465,4]
[365810734,1749930640038,-460.0,0.00022465,4]
[365810735,1749930640048,-460.0,0.00022465,4]
[365810736,1749930640057,-1395.43,0.00022465,4]
[365810737,1749930640066,-460.0,0.00022465,4]
[365810738,1749930640075,-616.65,0.00022465,4]
[365810739,1749930640084,-460.0,0.00022465,4]
[365810740,1749930640094,-2664.63,0.00022465,4]
[365810741,1749930640103,-460.0,0.00022465,4]
[365810742,1749930640112,-440.0,0.00022465,4]
[365810743,1749930640121,-410.0,0.00022465,4]
[365810744,1749930640130,-3433.59,0.00022465,4]
[365810745,1749930640139,-240.0,0.00022465,4]
[365810746,1749930640150,-3459.67,0.00022465,4]
[365810747,1749930640159,-400.0,0.00022465,4]
[365810748,1749930640168,-460.0,0.00022465,4]
[365810749,1749930640177,-744.6,0.00022465,4]
[365810750,1749930640186,-568.48,0.00022465,4]
[365810751,1749930640195,-460.0,0.00022465,4]
[365810752,1749930640205,-460.0,0.00022465,4]
[365810753,1749930640214,-3885.17,0.00022465,4]
[365810754,1749930640224,-460.0,0.00022465,4]
[365810755,1749930640233,-460.0,0.00022465,4]
[365810757,1749930640243,-460.0,0.00022465,4]
[365810758,1749930640253,-3556.29,0.00022465,4]
[365810759,1749930640262,-460.0,0.00022465,4]
[365810760,1749930640271,-1763.39,0.00022465,4]
[365810761,1749930640280,-685.68,0.00022465,2]
[365810762,1749930640289,-685.9,0.00022465,4]
[365810763,1749930640299,-460.0,0.00022465,4]
[365810764,1749930640308,-460.0,0.00022465,4]
[365810765,1749930640317,-460.0,0.00022465,4]
[365810766,1749930640329,-460.0,0.00022465,4]
[365810767,1749930640339,-460.0,0.00022465,4]
[365810768,1749930640349,-460.0,0.00022465,4]
[365810769,1749930640359,-460.0,0.00022465,4]
[365810770,1749930640369,-460.0,0.00022465,4]
[365810771,1749930640379,-2415.44,0.00022465,4]
[365810772,1749930640389,-283.2427941,0.00022465,4]
[365810773,1749930640399,-1391.0,0.00022465,4]
[365810774,1749930640408,-1957.05,0.00022465,4]
[365810775,1749930640417,-3058.74,0.00022465,4]
[365810776,1749930640427,-1921.61,0.00022465,4]
[365810777,1749930640436,-460.0,0.00022465,4]
[365810778,1749930640445,-460.0,0.00022465,4]
[365810779,1749930640455,-460.0,0.00022465,4]
[365810780,1749930640464,-460.0,0.00022465,4]
[365810781,1749930640474,-460.0,0.00022465,4]
[365810782,1749930640483,-1098.89,0.00022465,4]
[365810783,1749930640493,-771.13,0.00022465,4]
[365810784,1749930640502,-1871.86,0.00022465,4]
[365810785,1749930640511,-460.0,0.00022465,4]
[365810786,1749930640520,-460.0,0.00022465,4]
[365810787,1749930640530,-448.07493434,0.00022466,2]
[365810788,1749930640539,-420.0,0.00022501,2]
[365810789,1749930640549,-420.0,0.00022501,2]
[365810790,1749930640559,-497.0,0.0002252,4]
[365810791,1749930640568,-151.0,0.0002252,4]
[365810792,1749930640577,-151.0,0.0002252,4]